Cogmind - Beta 13 @@@ ROGUE MODE // 2024.04.01 @ 02:40:34 Player: lazy_engineer Result: Self-destructed Performance ------------- Evolutions (1) 500 Regions Visited (3) 600 Robots Destroyed (11) 55 Value Destroyed (141) 141 Prototype IDs (2) 40 Alien Tech Used (0) 0 Bonus (0) 0 TOTAL SCORE: 1336 Bonus ------- None Cogmind --------- Core Integrity 344/400 Matter 283/300 Energy 100/100 System Corruption 0% Temperature Cool (9) Movement Core (50) Location -9/Materials Parts ------- > --- POWER (1) -------- (None) > --- PROPULSION (2) --- (None) > --- UTILITY (4) ------ Structural Scanner Improved Terrain Scanner Terrain Scan Processor > --- WEAPON (2) ------- (None) > --- INVENTORY (5) ---- Ion Engine Light Ion Engine Hover Unit Small Laser Peak State ------------ > --- POWER ------------ Light Nuclear Core > --- PROPULSION ------- Compact Wheel > --- UTILITY ---------- Structural Scanner Improved Terrain Scanner Terrain Scan Processor Seismic Detector > --- WEAPON ----------- Light Assault Rifle Mining Laser > --- INVENTORY -------- Ion Engine Light Ion Engine Small Laser [Rating: 13] Favorites ----------- Power Ion Engine Engine Ion Engine Power Core Light Nuclear Core Propulsion Compact Wheel Wheel Compact Wheel Utility Improved Terrain Scanner Device Improved Terrain Scanner Storage Small Storage Unit Processor Terrain Scan Processor Weapon Light Assault Rifle Energy Gun Small Laser Ballistic Gun Light Assault Rifle Special Weapon Mining Laser Build | -11 -10 -10 -9 ------- Run | Yrd Mat Min Mat Slots Evolved 2 | . . . 2 Power . | . . . . Propulsion . | . . . . Utility 2 | . . . 2 Weapon . | . . . . Parts Attached 18 | 8 2 6 2 Power 3 | 1 . 2 . Engine 2 | 1 . 1 . Core 1 | . . 1 . Reactor . | . . . . Propulsion 2 | 2 . . . Treads . | . . . . Leg . | . . . . Wheel 2 | 2 . . . Hover . | . . . . Flight . | . . . . Utility 8 | 3 1 2 2 Device 6 | 2 1 1 2 Storage 1 | 1 . . . Processor 1 | . . 1 . Hackware . | . . . . Protection . | . . . . Artifact . | . . . . Weapon 5 | 2 1 2 . Energy Gun 2 | 1 . 1 . Energy Cannon . | . . . . Ballistic Gun 1 | 1 . . . Ballistic Cannon . | . . . . Launcher . | . . . . Special Weapon 2 | . 1 1 . Impact Weapon . | . . . . Slashing Weapon . | . . . . Piercing Weapon . | . . . . Special Melee Weapon . | . . . . Unidentified Prototypes . | . . . . Parts Lost 8 | . 1 2 5 Power 1 | . . . 1 Propulsion 2 | . . 1 1 Utility 2 | . . 1 1 Weapon 3 | . 1 . 2 Highest Loss Streak 5 | . 1 2 5 To Critical Strikes . | . . . . Average Slot Usage (%) 95 | . 99 93 85 Engine 11 | . 14 11 . Core 2 | . . 2 11 Wheel 25 | . 28 23 11 Device 22 | . 28 12 33 Processor 6 | . . 14 11 Energy Gun 4 | . . 12 . Ballistic Gun 13 | . 14 14 11 Special Weapon 8 | . 13 1 8 Naked Turns . | . . . . Heaviest Build 12 | 12 9 8 10 Greatest Support 32 | 32 32 32 16 Greatest Overweight (x) . | . . . . Average Overweight (x) . | . . . . Largest Inventory Capacity 8 | 8 5 5 5 Average Capacity 5 | 7 5 5 5 Most Carried 5 | 4 4 5 4 Average Carried 2 | 1 2 3 3 Final Capacity 5 | 5 5 5 5 Final Carried 5 | 2 4 5 4 Class Distribution -------------------- 91% | Mutant 8% | Scavenger-Skirmisher Dominant Class ---------------- Mutant | -10/Materials Mutant | -10/Mines Scavenger-Skirmisher | -9/Materials Resources | -11 -10 -10 -9 ----------- Run | Yrd Mat Min Mat Matter Collected 360 | 271 . 89 . Remotely . | . . . . Salvage Created 364 | 200 25 139 . Parts 34 | 14 6 14 . Haulers Intercepted . | . . . . Recyclers Shooed . | . . . . Parts Field Recycled . | . . . . Retrieved Matter . | . . . . Parts Self-Destructed . | . . . . Prevented . | . . . . Kills | -11 -10 -10 -9 ------- Run | Yrd Mat Min Mat Combat Hostiles Destroyed 2 | . . 2 . Guns 2 | . . 2 . Classes Destroyed 4 | 2 1 1 . Builder 1 | . 1 . . Tunneler 7 | 5 . 2 . Recycler 1 | 1 . . . Grunt 2 | . . 2 . Best Kill Streak 5 | 5 1 2 . Combat Bots Only 2 | . . 2 . Max Kills in Single Turn 1 | 1 1 1 . Gunslinging . | . . . . Exploded . | . . . . Melee . | . . . . Uniques/NPCs Destroyed . | . . . . Combat | -11 -10 -10 -9 -------- Run | Yrd Mat Min Mat Hostile Shots Fired 59 | . 17 16 26 Missed 14 | . 5 3 6 Damage Taken 571 | . 155 187 229 Core 124 | . 22 46 56 Absorbed by Shields . | . . . . Core Remaining (%) 86 | 100 . 72 . Volleys Fired 37 | 14 2 14 7 Largest 2 | 2 1 2 2 Hottest 120 | 60 20 60 120 Shots Fired 66 | 28 2 28 8 Gun 65 | 28 2 28 7 Cannon . | . . . . Launcher . | . . . . Special 1 | . . . 1 Kinetic 37 | 14 2 14 7 Thermal 29 | 14 . 14 1 Explosive . | . . . . Electromagnetic . | . . . . Robot Hit Streak 10 | 7 7 10 2 Robot Miss Streak 2 | 2 . 2 2 Penetration Max . | . . . . Secondary Targets . | . . . . Shots Hit Robots 42 | 18 2 19 3 Core Hits 21 | 9 2 10 . Critical Kills . | . . . . Critical Parts Destroyed . | . . . . Critical Strikes . | . . . . Melee Attacks . | . . . . Impact . | . . . . Slashing . | . . . . Piercing . | . . . . Sneak Attacks . | . . . . Combat Hostiles . | . . . . Follow-up Attacks . | . . . . Damage Inflicted 425 | 186 16 188 35 Guns 425 | 186 16 188 35 Cannons . | . . . . Explosions . | . . . . Melee . | . . . . Ramming . | . . . . Kinetic 195 | 64 16 80 35 Thermal 230 | 122 . 108 . Explosive . | . . . . Electromagnetic . | . . . . Impact . | . . . . Slashing . | . . . . Piercing . | . . . . Highest Corruption . | . . . . Average Corruption . | . . . . Corruption Purged . | . . . . Corruption Blocked . | . . . . Overload Shots . | . . . . Overflow Damage . | . . . . Projectiles . | . . . . Explosions . | . . . . Melee . | . . . . Knockbacks . | . . . . Impact . | . . . . Kinetic . | . . . . Secondary . | . . . . Self-Inflicted Damage . | . . . . Shots . | . . . . Rammed . | . . . . Targets Rammed . | . . . . Kicked . | . . . . Crushed . | . . . . Highest Temperature 124 | 40 . 124 36 Average Temperature 31 | 16 . 43 18 Received Heat Transfer 252 | . 87 102 63 Siege Activations . | . . . . Robots Corrupted . | . . . . Combat Hostiles . | . . . . Parts Fried . | . . . . Impact Corruptions . | . . . . Robots Melted . | . . . . Combat Hostiles . | . . . . Parts Melted 1 | 1 . . . Heat Transferred 525 | 275 . 250 . Parts Sabotaged . | . . . . Parts Stolen . | . . . . Parts Stripped . | . . . . Power Chain Reactions . | . . . . Alert | -11 -10 -10 -9 ------- Run | Yrd Mat Min Mat Peak Influence 79 | 30 74 79 61 Initial 30 | . 19 24 30 Average 31 | 15 30 39 40 Maximum Alert Level . | . . . . Low Security (%) 100 | 100 100 100 100 Level 1 . | . . . . Level 2 . | . . . . Level 3 . | . . . . Level 4 . | . . . . Level 5 . | . . . . High Security . | . . . . Max Security . | . . . . Squads Dispatched 1 | . . . 1 Investigation . | . . . . Extermination . | . . . . Reinforcement 1 | . . . 1 Assault . | . . . . Garrison . | . . . . Intercept . | . . . . Searches Triggered . | . . . . Construction Impeded . | . . . . Haulers Reinforced . | . . . . Active Scanning Responses . | . . . . Cargo Convoy Interrupts . | . . . . Stealth | -11 -10 -10 -9 --------- Run | Yrd Mat Min Mat Distress Signals . | . . . . Communications Jammed . | . . . . Distress Signals . | . . . . Times Spotted 14 | . 7 2 5 Peak Tracking Total 6 | . 4 2 6 Tactical Retreats 1 | . 1 . . Traps | -11 -10 -10 -9 ------- Run | Yrd Mat Min Mat Traps Triggered . | . . . . Indirectly . | . . . . Trap Hack Attempts . | . . . . Triggered . | . . . . Disarmed . | . . . . Reprogrammed . | . . . . Reused . | . . . . Traps Extracted . | . . . . Installed . | . . . . Triggered . | . . . . Machines | -11 -10 -10 -9 ---------- Run | Yrd Mat Min Mat Machines Disabled . | . . . . Max in Single Turn . | . . . . Machines Repaired . | . . . . Machines Dismantled . | . . . . Machines Sabotaged . | . . . . Overloaded Fab Kills . | . . . . Hacking | -11 -10 -10 -9 --------- Run | Yrd Mat Min Mat Machines Accessed 1 | . 1 . . Terminals 1 | . 1 . . Fabricators . | . . . . Repair Stations . | . . . . Recycling Units . | . . . . Scanalyzers . | . . . . Garrison Access . | . . . . Total Hacks 3 | . 3 . . Successful 1 | . 1 . . Failed 2 | . 2 . . Catastrophic 1 | . 1 . . Database Lockouts . | . . . . Manual . | . . . . Terminals 3 | . 3 . . Fabricators . | . . . . Repair Stations . | . . . . Recycling Units . | . . . . Scanalyzers . | . . . . Garrison Access . | . . . . Terminal Hacks 1 | . 1 . . Prototype ID Bank 1 | . 1 . . Fabricator Hacks . | . . . . Repair Station Hacks . | . . . . Recycling Unit Hacks . | . . . . Scanalyzer . | . . . . Garrison Access Hacks . | . . . . Unauthorized Hacks . | . . . . Terminals . | . . . . Fabricators . | . . . . Repair Stations . | . . . . Recycling Units . | . . . . Scanalyzers . | . . . . Garrison Access . | . . . . Data Cores Recovered . | . . . . Used . | . . . . Hacking Detections 1 | . 1 . . Full Trace Events . | . . . . Feedback Events . | . . . . Feedback Blocked . | . . . . Robot Schematics Acquired . | . . . . Robots Built . | . . . . Authchips . | . . . . Time . | . . . . Total Robot Build Rating . | . . . . Part Schematics Acquired . | . . . . Parts Built . | . . . . Authchips . | . . . . Time . | . . . . Total Part Build Rating . | . . . . Parts Repaired . | . . . . Time . | . . . . Parts Recycled . | . . . . Recycled Matter . | . . . . Retrieved Matter . | . . . . Retrieved Components . | . . . . Parts Scanalyzed . | . . . . Part Schematics Acquired . | . . . . Parts Damaged . | . . . . Bothacking | -11 -10 -10 -9 ------------ Run | Yrd Mat Min Mat Used RIF Installer . | . . . . Robots Hacked . | . . . . Non-combat . | . . . . Combat . | . . . . Robot Hacks Applied . | . . . . Relay Couplers Released . | . . . . Fabnet Peak Effective % . | . . . . Robots Rewired . | . . . . Allies Hacked . | . . . . Hacks Repelled . | . . . . Allies | -11 -10 -10 -9 -------- Run | Yrd Mat Min Mat Total Allies . | . . . . Largest Group . | . . . . Highest-Rated Group . | . . . . Highest-Rated Ally . | . . . . Total Orders . | . . . . Ally Attacks . | . . . . Total Damage . | . . . . Kills . | . . . . Allies Corrupted . | . . . . Allies Melted . | . . . . Intel | -11 -10 -10 -9 ------- Run | Yrd Mat Min Mat Robot Analysis Total . | . . . . Derelict Logs Recovered 2 | . . 2 . Drone Launches . | . . . . Drone Recoveries . | . . . . Exploration | -11 -10 -10 -9 ------------- Run | Yrd Mat Min Mat Turns Passed 746 | 120 329 241 56 Spaces Moved 406 | 63 130 176 37 Core 9 | 9 . . . Treads . | . . . . Legs . | . . . . Wheels 397 | 54 130 176 37 Hover . | . . . . Flight . | . . . . Fastest Speed 50 | 50 100 100 100 Average Speed 98 | 92 100 100 100 Slowest Speed 100 | 100 100 100 100 Overloaded Moves . | . . . . Propulsion Burnouts . | . . . . Robots Hopped . | . . . . Cave-ins Triggered . | . . . . Exploration Rate (%) 20 | 4 33 37 8 Regions Visited 3 Branch Regions 1 Pre-discovered Areas . | . . . . Known Exits Taken . | . . . . Unknown Exits Taken 3 | 1 1 1 . Scrap Searched . | . . . . Spaces Dug . | . . . . Terrain Destroyed 1 | . . . 1 Melee . | . . . . Projectile 1 | . . . 1 AOE . | . . . . Terrain Rammed . | . . . . Walls Destroyed . | . . . . Machines Disabled . | . . . . Actions | -11 -10 -10 -9 --------- Run | Yrd Mat Min Mat Total 685 | 99 326 213 47 Wait 210 | 4 191 15 . Move 403 | 62 129 175 37 Hop . | . . . . Pick Up 16 | 10 2 3 1 Fast Attach . | . . . . Attach 12 | 8 . 2 2 Detach . | . . . . Swap 6 | . 2 4 . Drop 1 | 1 . . . Fire 37 | 14 2 14 7 Melee . | . . . . Ram . | . . . . Kick . | . . . . Crush . | . . . . Escape Stasis . | . . . . Rewire . | . . . . Trap . | . . . . Miscellaneous . | . . . . Route ------- -11/Scrapyard -10/Materials (discovered 2 exits: [*Min x2]) -10/Mines -9/Materials (discovered 1 exit: Min) History --------- Turn | Location | Event 18 | -11/Scrapyard | Discovered new exit (range 15) 121 | -11/Scrapyard | Entered Materials 123 | -10/Materials | Discovered new exit (range 14) 313 | -10/Materials | Build established: Mutant 414 | -10/Materials | Discovered new exit (range 12) 450 | -10/Materials | Entered Mines 459 | -10/Mines | Met a Derelict bent on vengeance 561 | -10/Mines | Learned Materials emergency access door positions 562 | -10/Mines | Assembled infested the area 682 | -10/Mines | Discovered new exit (range 5) 691 | -10/Mines | Entered Materials 691 | -9/Materials | Evolved 2 slots: Utility x2 692 | -9/Materials | Identified exit to Mines 747 | -9/Materials | Self-destructed Last Messages --------------- K-01 Serf collects debris. Acquired Hover Unit. K-01 Serf collects debris. Connecting with Terminal... Current location identified: Materials K-01 Serf collects debris. U-05 Engineer builds a Wall. K-01 Serf collects debris. O-16 Technician: "IFF HANDSHAKE FAILED. SECURING TERMINAL." Mining Laser destroyed. S-10 Pest destroyed. Lgt. Nuclear Core destroyed. K-01 Serf collects debris. ALERT: Hostiles spotted, dispatching reinforcements to Terminal M008. Seismic Detector destroyed. Com. Wheel destroyed. K-01 Serf cleans the Pressure Siphon. Lgt. Assault Rifle destroyed. Map ----- +----------------------------------------------------+ | ??????????????????????????????????+??? | | ?????????????????????????????????????? | | ?????????????????????????????????????? | | ?????????????????????????????????????? | | ?????????????????????????????????????? | | ?????????????????????????????????????? | | ?????????????????????????????????????? | | ??????????????????????????????????+??? | | ?????????????????????????????????????? | | ?????????????????????????????????????? | | ???????????????????????????? ???????? | | ????????????????? ##### # ????? | | ?????????????????##+######## # ????? | | ?????????????????# # ????? | | ??????????????????? + ????? | | ???????????????? ? ??????? | | ????????????? ????? ?? ????? | | ??????????????? ?? ?#??? ?# | | ?????????????Y????? ??+??? ?? | | ???????????? """" ??????? ? | | ???????????? """" ??#??#???? | | ????????????? """" ??#?#????# | | ?????????????? r ????#?#?#?? | | ?????????? ????? ??????#??# | | ???????????????"? """" ##########?? | | ??????????????"" """" @#########??? | | ?????????? """" k"""" # ! ]##??# | | ?????????? # ##??? | | ?????????? ss# "" ###?# | | ?????????? %# T" ##### | | ?????????? ####### =+ "" ##??? | | ?????????? #########+## u# ##?#? | | ???????????##??? # ##+#######?? | | ?????????????#??????? # # ??? | | ??????????????#?? ?? # # ? ??# | | ??????????????# ??? # """ # ??? | | ??????## ?????? # Y""" # ??"? | | ??????## ??? ######+### """ # ? "?# | | ??????## ##### # ""# | | ??????## + # | | ????????? ##### # ?? # | | ??????#????####### ##+######+# ??? | | ??????????#?????## # # ?? ?? | | ????????????##??## # ? ??? ???? ???# | | ?????#????????#?## # ??? ???# ???? | | ?????#?????????### # ???????? | | ????????????#???## #########?#???#?? | | ?????#?#????????## # ###?????#? | | ?????#?????????### # ##???????? | | ???????#?#??##??## # ###??????? | +----------------------------------------------------+ Best States ------------- Heat Dissipation 28 Energy Generation 14 Energy Capacity 250 Matter Stores 300 Matter Capacity 300 Sight Range 16 Terrain Scan Range 16 Terrain Scan Density 85 Evasion (%) 50 Item Schematics ----------------- None Robot Schematics ------------------ None Fabricated ------------ Nothing Alien Tech Used ----------------- None Achievements -------------- None Challenges ------------ None Game ------ Seed ElectronFlakComputer Manual? 0 Play Time 00:09:58 Cumulative 5.9 hours Start 2024.04.01 @ 02:31:30 End 2024.04.01 @ 02:40:34 Sessions 1 Manual Loads 0 Difficulty Rogue Special Mode None Game No. 11 Rogue 11 Adventurer 0 Explorer 0 Win Type - Total 0 Types 0/0/0/0/0/0/0/0/0 Lore% 11 Gallery% 11 Achievement% 12 Wizard Run 0 Options --------- Layout 1 ASCII 0 Keyboard 0 Movement Mouse Keybinds 0 Fullscreen 1 Font 32/SmallcapsGlow Map View 50x35 Zoom Use 0% Tactical HUD 0 Map Filters NONE Filters NONE Steam 1 RUN: 2e05ac7b-5dd5-428b-81ae-2a67f7ebc1d2